fUSD/lending_fUSD_20250616
["ID","MTS","AMOUNT","RATE_DAILY","PERIOD"]
[366074899,1750050662542,-306.69229381,0.00016602,2]
[366074900,1750050662553,-490.0,0.00016602,2]
[366074901,1750050662565,-1825.39,0.00016602,2]
[366074902,1750050662576,-648.6,0.00016602,2]
[366074903,1750050662586,-695.71,0.00016602,2]
[366074904,1750050662596,-490.0,0.00016602,2]
[366074905,1750050662606,-490.0,0.00016602,2]
[366074906,1750050662616,-789.97,0.00016602,2]
[366074907,1750050662626,-490.0,0.00016602,2]
[366074908,1750050662636,-686.87,0.00016602,2]
[366074909,1750050662646,-957.42,0.00016602,2]
[366074910,1750050662656,-500.4,0.00016602,2]
[366074911,1750050662667,-490.0,0.00016602,2]
[366074912,1750050662678,-501.94,0.00016602,2]
[366074913,1750050662689,-754.6,0.00016602,2]
[366074914,1750050662699,-490.0,0.00016602,2]
[366074915,1750050662708,-490.0,0.00016602,2]
[366074916,1750050662718,-151.0,0.00016602,2]
[366074917,1750050662728,-151.0,0.00016602,2]
[366074918,1750050662738,-236.25738,0.00016602,2]
[366074919,1750050662749,-495.71,0.00016602,2]
[366074920,1750050662759,-1478.94,0.00016602,2]
[366074921,1750050662770,-523.57,0.00016602,2]
[366074922,1750050662780,-641.76,0.00016602,2]
[366074923,1750050662790,-490.0,0.00016602,2]
[366074924,1750050662799,-490.0,0.00016602,2]
[366074925,1750050662809,-490.0,0.00016602,2]
[366074926,1750050662819,-490.0,0.00016602,2]
[366074927,1750050662829,-1218.75,0.00016602,2]
[366074928,1750050662839,-234.411313,0.00016602,2]
[366074929,1750050662848,-490.0,0.00016602,2]
[366074930,1750050662858,-234.411313,0.00016602,2]
[366074931,1750050662868,-234.411313,0.00016602,2]
[366074932,1750050662878,-234.411313,0.00016602,2]
[366074933,1750050662892,-678.97,0.00016602,2]
[366074934,1750050662902,-1280.96,0.00016602,2]
[366074935,1750050662912,-1902.69,0.00016602,2]
[366074936,1750050662921,-860.04,0.00016602,2]
[366074937,1750050662931,-490.0,0.00016602,2]
[366074938,1750050662941,-234.411313,0.00016602,2]
[366074939,1750050662952,-234.411313,0.00016602,2]
[366074940,1750050662963,-490.0,0.00016602,2]
[366074941,1750050662973,-234.411313,0.00016602,2]
[366074942,1750050662983,-234.411313,0.00016602,2]
[366074943,1750050662993,-614.87,0.00016602,2]
[366074944,1750050663003,-297.08,0.00016602,2]
[366074945,1750050663013,-490.0,0.00016602,2]
[366074946,1750050663023,-490.0,0.00016602,2]
[366074947,1750050663032,-490.0,0.00016602,2]
[366074948,1750050663042,-1750.53,0.00016602,2]
[366074949,1750050663052,-720.026803,0.00016602,2]
[366074950,1750050663062,-490.0,0.00016602,2]
[366074951,1750050663073,-720.026803,0.00016602,2]
[366074952,1750050663084,-720.026803,0.00016602,2]
[366074953,1750050663095,-720.026803,0.00016602,2]
[366074954,1750050663105,-769.08,0.00016602,2]
[366074955,1750050663115,-720.026803,0.00016602,2]
[366074956,1750050663126,-720.026803,0.00016602,2]
[366074957,1750050663136,-720.026803,0.00016602,2]
[366074958,1750050663146,-720.026803,0.00016602,2]
[366074959,1750050663156,-910.08,0.00016602,2]
[366074960,1750050663166,-490.0,0.00016602,2]
[366074961,1750050663176,-490.0,0.00016602,2]
[366074962,1750050663186,-572.55,0.00016602,2]
[366074963,1750050663197,-490.0,0.00016602,2]
[366074964,1750050663206,-1521.57,0.00016602,2]
[366074965,1750050663217,-490.0,0.00016602,2]
[366074966,1750050663227,-225.721112,0.00016602,2]
[366074967,1750050663237,-225.721112,0.00016602,2]
[366074968,1750050663247,-577.87,0.00016602,2]
[366074969,1750050663259,-225.721112,0.00016602,2]
[366074970,1750050663270,-490.0,0.00016602,2]
[366074971,1750050663280,-225.721112,0.00016602,2]
[366074972,1750050663290,-588.39,0.00016602,2]
[366074973,1750050663300,-1435.53,0.00016602,2]
[366074974,1750050663310,-225.721112,0.00016602,2]
[366074975,1750050663320,-225.721112,0.00016602,2]
[366074976,1750050663330,-1115.73,0.00016602,2]
[366074977,1750050663340,-225.721112,0.00016602,2]
[366074978,1750050663351,-729.4,0.00016602,2]
[366074979,1750050663361,-225.721112,0.00016602,2]
[366074980,1750050663370,-490.0,0.00016602,2]
[366074981,1750050663380,-490.0,0.00016602,2]
[366074982,1750050663390,-490.0,0.00016602,2]
[366074983,1750050663400,-1052.69,0.00016602,2]
[366074984,1750050663410,-490.0,0.00016602,2]
[366074985,1750050663419,-490.0,0.00016602,2]
[366074986,1750050663429,-1623.41,0.00016602,2]
[366074987,1750050663439,-1192.61,0.00016602,2]
[366074988,1750050663448,-490.0,0.00016602,2]
[366074989,1750050663459,-490.0,0.00016602,2]
[366074990,1750050663469,-490.0,0.00016602,2]
[366074991,1750050663479,-490.0,0.00016602,2]
[366074992,1750050663489,-2022.79,0.00016602,2]
[366074993,1750050663499,-490.0,0.00016602,2]
[366074994,1750050663509,-1578.35,0.00016602,2]
[366074995,1750050663519,-490.0,0.00016602,2]
[366074996,1750050663528,-490.0,0.00016602,2]
[366074997,1750050663538,-644.54,0.00016602,2]
[366074998,1750050663548,-923.58,0.00016602,2]
[366074999,1750050663919,-1189.22,0.00016602,2]
[366075000,1750050663930,-1700.25,0.00016602,2]
[366075001,1750050663940,-1008.56,0.00016602,2]
[366075002,1750050663950,-1294.0,0.00016602,2]
[366075003,1750050663960,-1418.19,0.00016602,2]
[366075004,1750050663974,-717.65,0.00016602,2]
[366075005,1750050663984,-490.0,0.00016602,2]
[366075006,1750050663993,-490.0,0.00016602,2]
[366075007,1750050664003,-490.0,0.00016602,2]
[366075008,1750050664012,-490.0,0.00016602,2]
[366075009,1750050664022,-490.0,0.00016602,2]
[366075010,1750050664032,-490.0,0.00016602,2]
[366075011,1750050664041,-810.63,0.00016602,2]
[366075012,1750050664051,-490.0,0.00016602,2]
[366075013,1750050664062,-790.52,0.00016602,2]
[366075014,1750050664073,-151.0,0.00016602,2]
[366075015,1750050664083,-151.0,0.00016602,2]
[366075016,1750050664093,-151.0,0.00016602,2]
[366075017,1750050664104,-490.0,0.00016602,2]
[366075018,1750050664114,-151.0,0.00016602,2]
[366075019,1750050664124,-726.24,0.00016602,2]
[366075020,1750050664134,-755.99,0.00016602,2]
[366075021,1750050664144,-490.0,0.00016602,2]
[366075022,1750050664154,-2109.45,0.00016602,2]
[366075023,1750050664164,-490.0,0.00016602,2]
[366075024,1750050664174,-796.51,0.00016602,2]
[366075025,1750050664184,-1250.18,0.00016602,2]
[366075026,1750050664193,-610.64,0.00016602,2]
[366075027,1750050664203,-708.23,0.00016602,2]
[366075028,1750050664213,-490.0,0.00016602,2]
[366075029,1750050664223,-490.0,0.00016602,2]
[366075030,1750050664233,-650.65,0.00016602,2]
[366075031,1750050664243,-495.85004879,0.00016602,2]
[366075032,1750050664253,-1179.56,0.00016602,2]
[366075033,1750050664263,-1107.54,0.00016602,2]
[366075034,1750050664272,-800.29,0.00016602,2]
[366075035,1750050664283,-633.96,0.00016602,2]
[366075036,1750050664293,-631.83,0.00016602,2]
[366075037,1750050664303,-598.73,0.00016602,2]
[366075038,1750050664313,-490.0,0.00016602,2]
[366075039,1750050664322,-1244.17,0.00016602,2]
[366075040,1750050664332,-225.21255862,0.00016602,2]
[366075041,1750050664342,-1507.9,0.00016602,2]
[366075042,1750050664352,-490.0,0.00016602,2]
[366075043,1750050664361,-490.0,0.00016602,2]
[366075044,1750050664371,-490.0,0.00016602,2]
[366075045,1750050664381,-870.35,0.00016602,2]
[366075046,1750050664391,-540.49,0.00016602,2]
[366075047,1750050664400,-490.0,0.00016602,2]
[366075048,1750050664410,-490.0,0.00016602,2]
[366075049,1750050664419,-1399.35,0.00016602,2]
[366075050,1750050664429,-595.26,0.00016602,2]
[366075051,1750050664440,-490.0,0.00016602,2]
[366075052,1750050664450,-490.0,0.00016602,2]
[366075053,1750050664459,-590.81,0.00016602,2]
[366075054,1750050664468,-490.0,0.00016602,2]
[366075055,1750050664478,-490.0,0.00016602,2]
[366075056,1750050664488,-151.0,0.00016602,2]
[366075057,1750050664497,-151.0,0.00016602,2]
[366075058,1750050664507,-151.0,0.00016602,2]
[366075059,1750050664516,-151.0,0.00016602,2]
[366075060,1750050664526,-490.0,0.00016602,2]
[366075061,1750050664536,-700.48,0.00016602,2]
[366075062,1750050664546,-1315.08,0.00016602,2]
[366075063,1750050664556,-460.67086211,0.00016602,2]
[366075064,1750050664566,-909.03,0.00016602,2]
[366075065,1750050664578,-681.28,0.00016602,2]
[366075066,1750050664588,-737.68,0.00016602,2]
[366075067,1750050664598,-490.0,0.00016602,2]
[366075068,1750050664607,-763.29,0.00016602,2]
[366075069,1750050664617,-273.30875474,0.00016602,2]
[366075070,1750050664627,-490.0,0.00016602,2]
[366075071,1750050664636,-676.15,0.00016602,2]
[366075072,1750050664646,-578.23,0.00016602,2]
[366075073,1750050664657,-1989.42,0.00016602,2]
[366075074,1750050664667,-1455.94,0.00016602,2]
[366075075,1750050664677,-2470.39,0.00016602,2]
[366075076,1750050664687,-993.3,0.00016602,2]
[366075077,1750050664696,-490.0,0.00016602,2]
[366075078,1750050664706,-490.0,0.00016602,2]
[366075079,1750050664716,-1660.18,0.00016602,2]
[366075080,1750050664725,-682.96,0.00016602,2]
[366075081,1750050664735,-907.1,0.00016602,2]
[366075082,1750050664745,-287.58419969,0.00016602,2]
[366075083,1750050664756,-490.0,0.00016602,2]
[366075084,1750050664765,-490.0,0.00016602,2]
[366075085,1750050664775,-1456.69,0.00016602,2]
[366075086,1750050664786,-956.25,0.00016602,2]
[366075087,1750050664795,-490.0,0.00016602,2]
[366075088,1750050664805,-490.0,0.00016602,2]
[366075089,1750050664815,-490.0,0.00016602,2]
[366075090,1750050664826,-490.0,0.00016602,2]
[366075091,1750050664835,-490.0,0.00016602,2]
[366075092,1750050664845,-490.0,0.00016602,2]
[366075093,1750050664854,-544.49,0.00016602,2]
[366075094,1750050664864,-852.19,0.00016602,2]
[366075095,1750050664874,-2052.42,0.00016602,2]
[366075096,1750050664885,-490.0,0.00016602,2]
[366075097,1750050664899,-490.0,0.00016602,2]
[366075098,1750050664909,-1190.31,0.00016602,2]
[366075099,1750050664919,-565.36,0.00016602,2]
[366075100,1750050664928,-1358.83,0.00016602,2]
[366075101,1750050664939,-350.33366529,0.00016602,2]
[366075102,1750050664948,-794.31,0.00016602,2]
[366075103,1750050664958,-490.0,0.00016602,2]
[366075104,1750050664970,-505.31,0.00016602,2]
[366075105,1750050664980,-490.0,0.00016602,2]
[366075106,1750050664990,-490.0,0.00016602,2]
[366075107,1750050665000,-239.266396,0.00016602,2]
[366075108,1750050665010,-239.266396,0.00016602,2]
[366075109,1750050665019,-239.266396,0.00016602,2]
[366075110,1750050665030,-239.266396,0.00016602,2]
[366075111,1750050665039,-490.0,0.00016602,2]
[366075112,1750050665049,-490.0,0.00016602,2]
[366075113,1750050665059,-1330.59,0.00016602,2]
[366075114,1750050665068,-239.266396,0.00016602,2]
[366075115,1750050665079,-239.266396,0.00016602,2]
[366075116,1750050665089,-710.59,0.00016602,2]
[366075117,1750050665099,-239.266396,0.00016602,2]
[366075118,1750050665108,-490.0,0.00016602,2]
[366075119,1750050665117,-239.266396,0.00016602,2]
[366075120,1750050665127,-490.0,0.00016602,2]
[366075121,1750050665137,-980.45,0.00016602,2]
[366075122,1750050665146,-508.45,0.00016602,2]
[366075123,1750050665156,-992.58,0.00016602,2]
[366075124,1750050665165,-490.0,0.00016602,2]
[366075125,1750050665174,-524.45,0.00016602,2]
[366075126,1750050665184,-490.0,0.00016602,2]
[366075127,1750050665194,-758.97,0.00016602,2]
[366075128,1750050665203,-490.0,0.00016602,2]
[366075129,1750050665213,-490.0,0.00016602,2]
[366075130,1750050665223,-490.0,0.00016602,2]
[366075131,1750050665232,-759.14,0.00016602,2]
[366075132,1750050665242,-699.08,0.00016602,2]
[366075133,1750050665252,-490.0,0.00016602,2]
[366075134,1750050665263,-649.21,0.00016602,2]
[366075135,1750050665272,-308.298984,0.00016602,2]
[366075136,1750050665282,-490.0,0.00016602,2]
[366075137,1750050665291,-308.298984,0.00016602,2]
[366075138,1750050665301,-308.298984,0.00016602,2]
[366075139,1750050665310,-215.870497,0.00016602,2]
[366075140,1750050665319,-215.870497,0.00016602,2]
[366075141,1750050665330,-308.298984,0.00016602,2]
[366075142,1750050665340,-215.870497,0.00016602,2]
[366075143,1750050665350,-215.870497,0.00016602,2]
[366075144,1750050665360,-792.792477,0.00016602,2]
[366075145,1750050665369,-792.792477,0.00016602,2]
[366075146,1750050665379,-792.792477,0.00016602,2]
[366075147,1750050665389,-1246.39,0.00016602,2]
[366075148,1750050665398,-1865.55,0.00016602,2]
[366075149,1750050665407,-792.792477,0.00016602,2]
[366075150,1750050665416,-308.298984,0.00016602,2]
[366075151,1750050665426,-490.0,0.00016602,2]
[366075152,1750050665435,-490.0,0.00016602,2]
[366075153,1750050665444,-308.298984,0.00016602,2]
[366075154,1750050665454,-589.95,0.00016602,2]
[366075155,1750050665477,-308.298984,0.00016602,2]
[366075156,1750050665488,-215.870497,0.00016602,2]
[366075157,1750050665499,-308.298984,0.00016602,2]
[366075158,1750050665511,-215.870497,0.00016602,2]
[366075159,1750050665521,-215.870497,0.00016602,2]
[366075160,1750050665532,-792.792477,0.00016602,2]
[366075161,1750050665542,-215.870497,0.00016602,2]
[366075162,1750050665554,-792.792477,0.00016602,2]
[366075163,1750050665564,-2489.45,0.00016602,2]
[366075164,1750050665575,-792.792477,0.00016602,2]
[366075165,1750050665586,-792.79247,0.00016602,2]
[366075166,1750050665597,-490.0,0.00016602,2]
[366075167,1750050665607,-723.25,0.00016602,2]
[366075168,1750050665618,-151.0,0.00016602,2]
[366075169,1750050665628,-490.0,0.00016602,2]
[366075170,1750050665640,-151.0,0.00016602,2]
[366075171,1750050665651,-151.0,0.00016602,2]
[366075172,1750050665661,-151.0,0.00016602,2]
[366075173,1750050665672,-2018.3,0.00016602,2]
[366075174,1750050665682,-2317.57,0.00016602,2]
[366075175,1750050665692,-697.24,0.00016602,2]
[366075176,1750050665702,-490.0,0.00016602,2]
[366075177,1750050665712,-490.0,0.00016602,2]
[366075178,1750050665723,-490.0,0.00016602,2]
[366075179,1750050665733,-594.73,0.00016602,2]
[366075180,1750050665743,-512.48,0.00016602,2]
[366075181,1750050665753,-490.0,0.00016602,2]
[366075182,1750050665763,-628.88,0.00016602,2]
[366075183,1750050665773,-490.0,0.00016602,2]
[366075184,1750050665783,-490.0,0.00016602,2]
[366075185,1750050665793,-501.82790841,0.00016602,2]
[366075186,1750050665802,-2906.26,0.00016602,2]
[366075187,1750050665812,-490.0,0.00016602,2]
[366075188,1750050665822,-490.0,0.00016602,2]
[366075189,1750050665832,-276.69880954,0.00016602,2]
[366075190,1750050665842,-488.45936412,0.00016602,2]
[366075191,1750050665851,-490.0,0.00016602,2]
[366075192,1750050665861,-594.61,0.00016602,2]
[366075193,1750050665871,-1912.64,0.00016602,2]
[366075194,1750050665882,-1471.5,0.00016602,2]
[366075195,1750050665897,-490.0,0.00016602,2]
[366075196,1750050665914,-490.0,0.00016602,2]
[366075197,1750050665924,-546.51,0.00016602,2]
[366075198,1750050665935,-490.0,0.00016602,2]
[366075199,1750050665945,-490.0,0.00016602,2]
[366075200,1750050665957,-490.0,0.00016602,2]
[366075201,1750050665969,-490.0,0.00016602,2]
[366075202,1750050665980,-943.3,0.00016602,2]
[366075203,1750050665990,-572.51,0.00016602,2]
[366075204,1750050666000,-1743.9,0.00016602,2]
[366075205,1750050666011,-582.28,0.00016602,2]
[366075206,1750050666021,-1808.31,0.00016602,2]
[366075207,1750050666031,-547.88,0.00016602,2]
[366075208,1750050666042,-516.31,0.00016602,2]
[366075209,1750050666052,-770.17,0.00016602,2]
[366075210,1750050666063,-490.0,0.00016602,2]
[366075211,1750050666074,-490.0,0.00016602,2]
[366075212,1750050666084,-490.0,0.00016602,2]
[366075213,1750050666094,-523.89,0.00016602,2]
[366075214,1750050666105,-1540.75,0.00016602,2]
[366075215,1750050666114,-504.55,0.00016602,2]
[366075216,1750050666124,-490.0,0.00016602,2]
[366075217,1750050666135,-490.0,0.00016602,2]
[366075218,1750050666145,-677.86,0.00016602,2]
[366075219,1750050666155,-694.54,0.00016602,2]
[366075220,1750050666164,-498.43915613,0.00016602,2]
[366075221,1750050666174,-490.0,0.00016602,2]
[366075222,1750050666184,-1595.75,0.00016602,2]
[366075223,1750050666194,-1766.25,0.00016602,2]
[366075224,1750050666204,-1297.53,0.00016602,2]
[366075225,1750050666214,-490.0,0.00016602,2]
[366075226,1750050666224,-200.0,0.00016602,2]
[366075227,1750050666234,-672.79,0.00016602,2]
[366075228,1750050666243,-533.9843563,0.00016602,2]
[366075229,1750050666254,-490.0,0.00016602,2]
[366075230,1750050666264,-469.88593366,0.00016602,2]
[366075231,1750050666274,-1492.3,0.00016602,2]
[366075232,1750050666284,-507.51,0.00016602,2]
[366075233,1750050666294,-684.56,0.00016602,2]
[366075234,1750050666303,-2063.82,0.00016602,2]
[366075235,1750050666313,-582.08,0.00016602,2]
[366075236,1750050666323,-879.19,0.00016602,2]
[366075237,1750050666333,-864.94,0.00016602,2]
[366075238,1750050666350,-1436.33,0.00016602,2]
[366075239,1750050666360,-447.07137826,0.00016602,2]
[366075240,1750050666593,-1101.25,0.00016602,2]
[366075241,1750050666605,-638.26582264,0.00016602,2]
[366075242,1750050666615,-490.0,0.00016602,2]
[366075243,1750050666624,-490.0,0.00016602,2]
[366075244,1750050666634,-568.12,0.00016602,2]
[366075245,1750050666644,-506.4373022,0.00016602,2]
[366075246,1750050666654,-680.31,0.00016602,2]
[366075247,1750050666663,-1493.52,0.00016602,2]
[366075248,1750050666673,-514.7,0.00016602,2]
[366075249,1750050666683,-1234.94,0.00016602,2]
[366075250,1750050666692,-886.73,0.00016602,2]
[366075251,1750050666701,-490.0,0.00016602,2]
[366075252,1750050666716,-624.14,0.00016602,2]
[366075253,1750050666726,-490.0,0.00016602,2]
[366075254,1750050666735,-1531.01,0.00016602,2]
[366075255,1750050666745,-490.0,0.00016602,2]
[366075256,1750050666755,-1180.8,0.00016602,2]
[366075257,1750050666764,-1542.34,0.00016602,2]
[366075258,1750050666774,-490.0,0.00016602,2]
[366075259,1750050666783,-1655.09,0.00016602,2]
[366075260,1750050666793,-546.63,0.00016602,2]
[366075261,1750050666802,-776.28,0.00016602,2]
[366075262,1750050666812,-1167.87,0.00016602,2]
[366075263,1750050666822,-490.0,0.00016602,2]
[366075264,1750050666831,-1185.300664,0.00016602,2]
[366075265,1750050666841,-2040.69,0.00016602,2]
[366075266,1750050666850,-1185.300664,0.00016602,2]
[366075267,1750050666860,-1185.300664,0.00016602,2]
[366075268,1750050666870,-1185.300664,0.00016602,2]
[366075269,1750050666880,-2000.36,0.00016602,2]
[366075270,1750050666892,-1185.300664,0.00016602,2]
[366075271,1750050666902,-1185.300664,0.00016602,2]
[366075272,1750050666911,-1185.300664,0.00016602,2]
[366075273,1750050666921,-1185.300664,0.00016602,2]
[366075274,1750050666931,-498.97291126,0.00016602,2]
[366075275,1750050666941,-496.1237935,0.00016602,2]
[366075276,1750050666950,-159.643284,0.00016602,2]
[366075277,1750050666960,-159.643284,0.00016602,2]
[366075278,1750050666972,-159.643284,0.00016602,2]
[366075279,1750050666982,-159.643284,0.00016602,2]
[366075280,1750050666991,-159.643284,0.00016602,2]
[366075281,1750050667001,-580.17,0.00016602,2]
[366075282,1750050667010,-490.0,0.00016602,2]
[366075283,1750050667020,-535.55,0.00016602,2]
[366075284,1750050667029,-159.643284,0.00016602,2]
[366075285,1750050667039,-490.0,0.00016602,2]
[366075286,1750050667048,-159.643284,0.00016602,2]
[366075287,1750050667059,-490.0,0.00016602,2]
[366075288,1750050667068,-159.643284,0.00016602,2]
[366075289,1750050667078,-1881.06,0.00016602,2]
[366075290,1750050667090,-159.643284,0.00016602,2]
[366075291,1750050667100,-159.643284,0.00016602,2]
[366075292,1750050667109,-490.0,0.00016602,2]
[366075293,1750050667119,-536.81,0.00016602,2]
[366075294,1750050667128,-1057.14,0.00016602,2]
[366075295,1750050667138,-590.28516341,0.00016602,2]
[366075296,1750050667147,-642.03,0.00016602,2]
[366075297,1750050667157,-1373.56,0.00016602,2]
[366075298,1750050667166,-1843.73,0.00016602,2]
[366075299,1750050667188,-749.4,0.00016602,2]
[366075300,1750050667198,-490.0,0.00016602,2]
[366075301,1750050667208,-490.0,0.00016602,2]
[366075302,1750050667218,-1527.66,0.00016602,2]
[366075303,1750050667228,-543.25,0.00016602,2]
[366075304,1750050667238,-490.0,0.00016602,2]
[366075305,1750050667248,-1689.59,0.00016602,2]
[366075306,1750050667257,-490.0,0.00016602,2]
[366075307,1750050667267,-151.362411,0.00016602,2]
[366075308,1750050667277,-151.362411,0.00016602,2]
[366075309,1750050667287,-151.362411,0.00016602,2]
[366075310,1750050667296,-151.362411,0.00016602,2]
[366075311,1750050667305,-151.362411,0.00016602,2]
[366075312,1750050667315,-2136.64,0.00016602,2]
[366075313,1750050667325,-151.362411,0.00016602,2]
[366075314,1750050667335,-729.54,0.00016602,2]
[366075315,1750050667344,-151.362411,0.00016602,2]
[366075316,1750050667354,-668.54,0.00016602,2]
[366075317,1750050667363,-151.362411,0.00016602,2]
[366075318,1750050667373,-151.362411,0.00016602,2]
[366075319,1750050667383,-942.43,0.00016602,2]
[366075320,1750050667393,-490.0,0.00016602,2]
[366075321,1750050667403,-151.362411,0.00016602,2]
[366075322,1750050667412,-545.35,0.00016602,2]
[366075323,1750050667422,-490.0,0.00016602,2]
[366075324,1750050667432,-490.0,0.00016602,2]
[366075325,1750050667441,-151.0,0.00016602,2]
[366075326,1750050667451,-151.0,0.00016602,2]
[366075327,1750050667461,-151.0,0.00016602,2]
[366075328,1750050667471,-151.0,0.00016602,2]
[366075329,1750050667481,-9830.46,0.00016602,2]
[366075330,1750050667491,-26331.95,0.00016602,2]
[366075331,1750050667500,-490.0,0.00016602,2]
[366075332,1750050667510,-151.0,0.00016602,2]
[366075333,1750050667520,-1716.44,0.00016602,2]
[366075334,1750050667531,-1386.07,0.00016602,2]
[366075335,1750050667540,-2034.18,0.00016602,2]
[366075336,1750050667550,-1607.2,0.00016602,2]
[366075337,1750050667561,-6313.97,0.00016602,2]
[366075338,1750050667570,-1390.25,0.00016602,2]
[366075339,1750050667580,-1663.998482,0.00016602,2]
[366075340,1750050667590,-185.55402907,0.00016602,2]
[366075341,1750050667600,-702.1,0.00016602,2]
[366075342,1750050667615,-1663.998482,0.00016602,2]
[366075343,1750050667625,-1663.998482,0.00016602,2]
[366075344,1750050667637,-1663.998482,0.00016602,2]
[366075345,1750050667647,-651.74,0.00016602,2]
[366075346,1750050667657,-1663.998482,0.00016602,2]
[366075347,1750050667667,-1252.94,0.00016602,2]
[366075348,1750050667677,-1663.998482,0.00016602,2]
[366075349,1750050667687,-3172.04,0.00016602,2]
[366075350,1750050667697,-1663.998482,0.00016602,2]
[366075351,1750050667707,-1663.998482,0.00016602,2]
[366075352,1750050667717,-490.0,0.00016602,2]
[366075353,1750050667727,-831.05,0.00016602,2]
[366075354,1750050667737,-3644.89,0.00016602,2]
[366075355,1750050667746,-2024.87,0.00016602,2]
[366075356,1750050667756,-756.27,0.00016602,2]
[366075357,1750050667766,-1768.55,0.00016602,2]
[366075358,1750050667777,-1631.36,0.00016602,2]
[366075359,1750050667786,-2056.67,0.00016602,2]
[366075360,1750050667796,-465.50969884,0.00016602,2]
[366075361,1750050667806,-596.21,0.00016602,2]
[366075362,1750050667816,-5065.08,0.00016602,2]
[366075363,1750050667826,-490.0,0.00016602,2]
[366075364,1750050667836,-565.57,0.00016602,2]
[366075365,1750050667846,-2024.74,0.00016602,2]
[366075366,1750050667855,-2574.47,0.00016602,2]
[366075367,1750050667865,-490.0,0.00016602,2]
[366075368,1750050667875,-1271.2,0.00016602,2]
[366075369,1750050667886,-3936.07,0.00016602,2]
[366075370,1750050667898,-669.5,0.00016602,2]
[366075371,1750050667908,-1230.02,0.00016602,2]
[366075372,1750050667918,-490.0,0.00016602,2]
[366075373,1750050667928,-490.0,0.00016602,2]
[366075374,1750050667938,-490.0,0.00016602,2]
[366075375,1750050667949,-1180.9,0.00016602,2]
[366075376,1750050667960,-2535.07,0.00016602,2]
[366075377,1750050667969,-809.13,0.00016602,2]
[366075378,1750050667979,-490.0,0.00016602,2]
[366075379,1750050667989,-490.0,0.00016602,2]
[366075380,1750050667998,-1773.27,0.00016602,2]
[366075381,1750050668008,-490.0,0.00016602,2]
[366075382,1750050668017,-1700.58,0.00016602,2]
[366075383,1750050668027,-554.78,0.00016602,2]
[366075384,1750050668036,-1647.15,0.00016602,2]
[366075385,1750050668047,-564.96,0.00016602,2]
[366075386,1750050668062,-490.0,0.00016602,2]
[366075387,1750050668072,-1593.96,0.00016602,2]
[366075388,1750050668082,-534.05,0.00016602,2]
[366075389,1750050668092,-2448.75,0.00016602,2]
[366075390,1750050668102,-442.925765,0.00016602,2]
[366075391,1750050668113,-442.925765,0.00016602,2]
[366075392,1750050668123,-1117.73,0.00016602,2]
[366075393,1750050668133,-3106.22,0.00016602,2]
[366075394,1750050668143,-442.925765,0.00016602,2]
[366075395,1750050668153,-2727.13,0.00016602,2]
[366075396,1750050668163,-442.925765,0.00016602,2]
[366075397,1750050668174,-490.0,0.00016602,2]
[366075398,1750050668184,-631.5,0.00016602,2]